[Event "ESTCC 50 2019"]
[Site "Mali Losinj"]
[Date "2019.09.24"]
[Round "7.10"]
[White "Mohr, Georg"]
[Black "Dusper, Hrvoje"]
[Result "1/2-1/2"]
[ECO "B39"]
[WhiteElo "2445"]
[BlackElo "2221"]
[Annotator "NA RC"]
[PlyCount "135"]
[EventDate "2019.09.18"]
[EventType "team-tourn"]
[EventCountry "CRO"]
[SourceTitle "playchess.com"]
[Source "ChessBase"]
[SourceQuality "1"]
[WhiteTeam "Slovenia"]
[BlackTeam "Croatia"]
[WhiteTeamCountry "SLO"]
[BlackTeamCountry "CRO"]
[TimeControl "40/5400+30:1800+30"]

1. e4 {[%emt 0:00:30]} c5 {[%emt 0:00:30]} 2. Nf3 {[%emt 0:00:30]} Nc6 {[%emt 0:00:30]} 3. d4 {[%emt 0:00:30]} cxd4 {[%emt 0:00:30]} 4. Nxd4 {[%emt 0:00:00]} g6 {[%emt 0:00:30]} 5. c4 {[%emt 0:00:00]} Bg7 {[%emt 0:00:30]} 6. Be3 {[%emt 0:00:30]} Nf6 {[%emt 0:00:30]} 7. Nc3 {[%emt 0:00:00]} Ng4 {[%emt 0:01:30]} 8. Qxg4 {[%emt 0:00:00]} Nxd4 {[%emt 0:00:00]} 9. Qd1 {[%emt 0:00:30]} Ne6 {[%emt 0:00:00]} 10. Rc1 {[%emt 0:00:00]} O-O {[%emt 0:00:30]} 11. Bd3 {[%emt 0:08:00]} d6 {[%emt 0:01:30]} 12. Qd2 {[%emt 0:02:30]} Nc5 {[%emt 0:09:30]} 13. Bb1 {[%emt 0:01:30]} b6 {[%emt 0:05:30]} 14. O-O {[%emt 0:20:30]} Bb7 {[%emt 0:02:30]} 15. f3 {[%emt 0:00:30]} Re8 {[%emt 0:02:30]} 16. Rfd1 {[%emt 0:01:30]} Rc8 {[%emt 0:06:30]} 17. Nb5 {[%emt 0:05:30]} a6 {[%emt 0:01:30]} 18. Nd4 {[%emt 0:00:30]} Ba8 {[%emt 0:01:30]} 19. b4 {[%emt 0:02:30]} Nd7 {[%emt 0:01:30]} 20. Bd3 {[%emt 0:00:30]} Qc7 {[%emt 0:06:30]} 21. Bf1 {[%emt 0:02:30]} Qb8 {[%emt 0:03:30]} 22. Nb3 {[%emt 0:00:30]} Bc6 {[%emt 0:03:30]} 23. Qf2 {[%emt 0:06:30]} Ba4 {[%emt 0:02:30]} 24. Rd2 {[%emt 0:07:30]} Bxb3 {[%emt 0:00:30]} 25. axb3 {[%emt 0:00:30]} a5 {[%emt 0:00:30]} 26. Rd5 {[%emt 0:18:30]} axb4 {[%emt 0:08:30]} 27. Rb5 {[%emt 0:00:30]} Nc5 {[%emt 0:12:30]} 28. Rxb4 {[%emt 0:00:00]} Qa7 {[%emt 0:04:30]} 29. Rb5 {[%emt 0:00:00]} Qa3 {[%emt 0:01:30]} 30. Rb1 {[%emt 0:02:30]} Rb8 {[%emt 0:03:30]} 31. Qd2 {[%emt 0:02:17]} Rec8 {[%emt 0:02:25]} 32. Qc2 {[%emt 0:05:58]} Rc7 {[%emt 0:03:16]} 33. Bf2 {[%emt 0:04:41]} Ra7 {[%emt 0:08:25]} 34. b4 {[%emt 0:00:36]} Ne6 {[%emt 0:02:39]} 35. Rxb6 {[%emt 0:02:25]} Rxb6 {[%emt 0:01:10]} 36. Bxb6 {[%emt 0:00:01]} Rb7 {[%emt 0:00:10]} 37. Ba5 {[%emt 0:05:04]} Bd4+ {[%emt 0:01:22]} 38. Kh1 {[%emt 0:00:00]} Qe3 {[%emt 0:00:00]} 39. Bd3 {[%emt 0:00:09]} Nf4 {[%emt 0:01:01]} 40. Rd1 {[%emt 0:00:11]} Nh3 {[%emt 0:00:00]} 41. Rf1 {[%emt 0:09:08]} Nf2+ {[%emt 0:01:02]} 42. Qxf2 {[%emt 0:00:00]} Qxf2 {[%emt 0:00:30]} 43. Rxf2 {[%emt 0:00:00]} Bxf2 {[%emt 0:00:00]} 44. e5 {[%emt 0:00:00]} Be1 {[%emt 0:01:00]} 45. exd6 {[%emt 0:06:00]} exd6 {[%emt 0:00:30]} 46. Be4 {[%emt 0:00:00]} Rb8 {[%emt 0:00:00]} 47. Bc7 {[%emt 0:00:00]} Rxb4 {[%emt 0:00:00]} 48. Bxd6 {[%emt 0:00:30]} Rxc4 {[%emt 0:00:30]} 49. g4 {[%emt 0:00:30]} Bb4 {[%emt 0:03:30]} 50. Bf4 {[%emt 0:00:30]} Kg7 {[%emt 0:00:30]} 51. g5 {[%emt 0:06:07]} Bc3 {[%emt 0:01:30]} 52. Kg2 {[%emt 0:01:02]} f6 {[%emt 0:01:30]} 53. gxf6+ {[%emt 0:00:30]} Bxf6 {[%emt 0:00:30]} 54. Kg3 {[%emt 0:01:12]} Rc5 {[%emt 0:01:30]} 55. Be3 {[%emt 0:01:08]} Ra5 {[%emt 0:00:30]} 56. h3 {[%emt 0:01:24]} Be5+ {[%emt 0:01:30]} 57. f4 {[%emt 0:00:09]} Ra3 {[%emt 0:01:30]} 58. Kf2 {[%emt 0:00:16]} Bf6 {[%emt 0:00:30]} 59. Ke2 {[%emt 0:02:16]} Ra4 {[%emt 0:01:30]} 60. Bc6 {[%emt 0:00:53]} Ra3 {[%emt 0:01:30]} 61. Bd7 {[%emt 0:00:38]} h6 {[%emt 0:00:30]} 62. Be6 {[%emt 0:00:49]} g5 {[%emt 0:01:30]} 63. fxg5 {[%emt 0:00:16]} hxg5 {[%emt 0:00:00]} 64. Kf2 {[%emt 0:01:29]} Ra5 {[%emt 0:01:00]} 65. Kf3 {[%emt 0:00:38]} Bc3 {[%emt 0:01:30]} 66. Bf2 {[%emt 0:01:00]} Kf6 {[%emt 0:00:30]} 67. Bg4 {[%emt 0:00:53]} Ra2 {[%emt 0:01:30]} 68. h4 {[%emt 0:01:09]} 1/2-1/2

[Event "ESTCC 50 2019"]
[Site "Mali Losinj"]
[Date "2019.09.24"]
[Round "7.11"]
[White "Martic, Zlatko"]
[Black "Mencinger, Vojko"]
[Result "1-0"]
[ECO "A01"]
[WhiteElo "2283"]
[BlackElo "2332"]
[Annotator "NA"]
[PlyCount "87"]
[EventDate "2019.09.18"]
[EventType "team-tourn"]
[EventCountry "CRO"]
[SourceTitle "playchess.com"]
[Source "ChessBase"]
[SourceQuality "1"]
[WhiteTeam "Croatia"]
[BlackTeam "Slovenia"]
[WhiteTeamCountry "CRO"]
[BlackTeamCountry "SLO"]
[TimeControl "40/5400+30:1800+30"]

1. b3 {[%emt 0:00:30]} d5 {[%emt 0:00:30]} 2. Bb2 {[%emt 0:00:00]} Nc6 {[%emt 0:01:30]} 3. e3 {[%emt 0:01:00]} e5 {[%emt 0:00:30]} 4. Bb5 {[%emt 0:02:30]} f6 {[%emt 0:00:30]} 5. d4 {[%emt 0:03:30]} exd4 {[%emt 0:01:30]} 6. Qxd4 {[%emt 0:01:30]} a6 {[%emt 0:05:30]} 7. Bxc6+ {[%emt 0:00:30]} bxc6 {[%emt 0:00:30]} 8. Nf3 {[%emt 0:00:30]} c5 {[%emt 0:02:30]} 9. Qd2 {[%emt 0:07:30]} Be6 {[%emt 0:03:30]} 10. Nc3 {[%emt 0:00:30]} Qd7 {[%emt 0:03:30]} 11. O-O {[%emt 0:09:30]} Bd6 {[%emt 0:05:30]} 12. Rfd1 {[%emt 0:01:30]} Ne7 {[%emt 0:02:30]} 13. e4 {[%emt 0:08:30]} d4 {[%emt 0:01:30]} 14. Ne2 {[%emt 0:00:00]} Bg4 {[%emt 0:01:30]} 15. Ne1 {[%emt 0:05:00]} Ng6 {[%emt 0:03:30]} 16. f3 {[%emt 0:00:30]} Be6 {[%emt 0:00:30]} 17. c3 {[%emt 0:00:30]} dxc3 {[%emt 0:00:30]} 18. Qxc3 {[%emt 0:01:30]} Qb5 {[%emt 0:01:30]} 19. Nd3 {[%emt 0:09:30]} O-O {[%emt 0:07:30]} 20. Rac1 {[%emt 0:02:30]} Rad8 {[%emt 0:01:30]} 21. Ba3 {[%emt 0:03:30]} Rfe8 {[%emt 0:01:30]} 22. Ng3 {[%emt 0:08:30]} Nf4 {[%emt 0:04:30]} 23. Nxc5 {[%emt 0:07:30]} Be5 {[%emt 0:21:30]} 24. Qb4 {[%emt 0:02:30]} Bc8 {[%emt 0:05:30]} 25. Qxb5 {[%emt 0:02:30]} axb5 {[%emt 0:00:30]} 26. Kf1 {[%emt 0:00:30]} g6 {[%emt 0:01:30]} 27. Bb4 {[%emt 0:02:38]} h5 {[%emt 0:00:30]} 28. h4 {[%emt 0:04:26]} Rd6 {[%emt 0:03:31]} 29. Nh1 {[%emt 0:02:36]} Red8 {[%emt 0:00:28]} 30. Nf2 {[%emt 0:00:26]} g5 {[%emt 0:04:52]} 31. hxg5 {[%emt 0:00:20]} fxg5 {[%emt 0:00:02]} 32. Rxd6 {[%emt 0:00:32]} Bxd6 {[%emt 0:03:41]} 33. Ncd3 {[%emt 0:05:21]} Ne6 {[%emt 0:00:49]} 34. Bxd6 {[%emt 0:01:08]} Rxd6 {[%emt 0:01:08]} 35. Ke2 {[%emt 0:00:38]} Kg7 {[%emt 0:02:05]} 36. Ke3 {[%emt 0:00:50]} Ra6 {[%emt 0:01:33]} 37. Nb4 {[%emt 0:00:32]} Ra7 {[%emt 0:00:39]} 38. Nfd3 {[%emt 0:00:11]} Kf6 {[%emt 0:00:49]} 39. g3 {[%emt 0:00:25]} Bd7 {[%emt 0:00:23]} 40. Nc5 {[%emt 0:00:57]} Nxc5 {[%emt 0:00:21]} 41. Rxc5 {[%emt 0:30:11]} c6 {[%emt 0:30:13]} 42. f4 {[%emt 0:01:08]} gxf4+ {[%emt 0:00:10]} 43. Kxf4 {[%emt 0:04:49]} Kg6 {[%emt 0:00:58]} 44. Nxc6 {[%emt 0:01:50]} 1-0

[Event "ESTCC 50 2019"]
[Site "Mali Losinj"]
[Date "2019.09.24"]
[Round "7.12"]
[White "Plesec, Damjan"]
[Black "Tirkajla, Boris"]
[Result "1-0"]
[ECO "A80"]
[WhiteElo "2216"]
[BlackElo "2060"]
[Annotator "NA"]
[PlyCount "95"]
[EventDate "2019.09.18"]
[EventType "team-tourn"]
[EventCountry "CRO"]
[SourceTitle "playchess.com"]
[Source "ChessBase"]
[SourceQuality "1"]
[WhiteTeam "Slovenia"]
[BlackTeam "Croatia"]
[WhiteTeamCountry "SLO"]
[BlackTeamCountry "CRO"]
[TimeControl "40/5400+30:1800+30"]

1. d4 {[%emt 0:05:30]} f5 {[%emt 0:00:30]} 2. Bf4 {[%emt 0:00:30]} Nf6 {[%emt 0:00:30]} 3. e3 {[%emt 0:00:30]} g6 {[%emt 0:00:30]} 4. h4 {[%emt 0:00:30]} h6 {[%emt 0:00:30]} 5. Nf3 {[%emt 0:00:30]} d6 {[%emt 0:00:30]} 6. Nc3 {[%emt 0:00:30]} Bg7 {[%emt 0:00:30]} 7. Bd3 {[%emt 0:07:30]} Nc6 {[%emt 0:06:30]} 8. a3 {[%emt 0:05:30]} O-O {[%emt 0:00:30]} 9. d5 {[%emt 0:04:30]} e5 {[%emt 0:00:30]} 10. dxe6 {[%emt 0:07:30]} Bxe6 {[%emt 0:03:30]} 11. Qd2 {[%emt 0:00:30]} Ng4 {[%emt 0:10:30]} 12. O-O-O {[%emt 0:17:30]} Nce5 {[%emt 0:05:30]} 13. Bg3 {[%emt 0:06:30]} Nxd3+ {[%emt 0:06:30]} 14. Qxd3 {[%emt 0:00:30]} Qf6 {[%emt 0:02:30]} 15. Nd4 {[%emt 0:02:30]} Bf7 {[%emt 0:10:30]} 16. h5 {[%emt 0:01:30]} Ne5 {[%emt 0:13:30]} 17. Bxe5 {[%emt 0:01:30]} dxe5 {[%emt 0:00:30]} 18. hxg6 {[%emt 0:00:30]} Bxg6 {[%emt 0:00:30]} 19. Nb3 {[%emt 0:07:30]} c6 {[%emt 0:16:44]} 20. Nc5 {[%emt 0:07:30]} Rfd8 {[%emt 0:02:57]} 21. Qe2 {[%emt 0:05:22]} Qe7 {[%emt 0:03:18]} 22. Nd3 {[%emt 0:02:16]} e4 {[%emt 0:01:29]} 23. Nf4 {[%emt 0:00:10]} Bf7 {[%emt 0:01:03]} 24. Nb1 {[%emt 0:02:26]} Qf6 {[%emt 0:01:09]} 25. c3 {[%emt 0:01:09]} Qe7 {[%emt 0:03:50]} 26. g4 {[%emt 0:00:55]} fxg4 {[%emt 0:03:40]} 27. Qxg4 {[%emt 0:01:10]} Rxd1+ {[%emt 0:01:09]} 28. Rxd1 {[%emt 0:00:16]} Rd8 {[%emt 0:00:24]} 29. Rg1 {[%emt 0:02:20]} Qe5 {[%emt 0:01:02]} 30. Nd2 {[%emt 0:01:38]} Kh8 {[%emt 0:00:19]} 31. Ng6+ {[%emt 0:06:04]} Bxg6 {[%emt 0:00:08]} 32. Qxg6 {[%emt 0:00:02]} Rd7 {[%emt 0:02:34]} 33. Nxe4 {[%emt 0:01:27]} Re7 {[%emt 0:00:56]} 34. Ng3 {[%emt 0:00:44]} Qf6 {[%emt 0:00:47]} 35. Nf5 {[%emt 0:01:07]} Qxg6 {[%emt 0:00:54]} 36. Rxg6 {[%emt 0:00:05]} Rf7 {[%emt 0:00:24]} 37. Nxh6 {[%emt 0:00:46]} Rxf2 {[%emt 0:00:17]} 38. Ng4 {[%emt 0:00:12]} Rg2 {[%emt 0:01:03]} 39. Ne5 {[%emt 0:00:37]} Re2 {[%emt 0:00:27]} 40. Nc4 {[%emt 0:00:07]} Kh7 {[%emt 0:00:47]} 41. Re6 {[%emt 0:30:12]} Bf8 {[%emt 0:30:31]} 42. Na5 {[%emt 0:01:46]} Bc5 {[%emt 0:00:17]} 43. Nxb7 {[%emt 0:00:16]} Bxe3+ {[%emt 0:00:36]} 44. Kb1 {[%emt 0:00:00]} Re1+ {[%emt 0:00:00]} 45. Ka2 {[%emt 0:00:00]} Re2 {[%emt 0:00:00]} 46. Kb3 {[%emt 0:00:00]} Kg7 {[%emt 0:00:00]} 47. Na5 {[%emt 0:00:00]} Kf7 {[%emt 0:00:00]} 48. Re4 {[%emt 0:00:00]} 1-0

[Event "ESTCC 50 2019"]
[Site "Mali Losinj"]
[Date "2019.09.24"]
[Round "7.13"]
[White "Burchardt, Brigitte"]
[Black "Lewis, Andrew P"]
[Result "0-1"]
[ECO "B26"]
[WhiteElo "2092"]
[BlackElo "2294"]
[Annotator "NA"]
[PlyCount "86"]
[EventDate "2019.09.18"]
[EventType "team-tourn"]
[EventCountry "CRO"]
[SourceTitle "playchess.com"]
[Source "ChessBase"]
[SourceQuality "1"]
[WhiteTeam "Germany"]
[BlackTeam "England"]
[WhiteTeamCountry "GER"]
[BlackTeamCountry "ENG"]
[TimeControl "40/5400+30:1800+30"]

1. e4 {[%emt 0:00:30]} c5 {[%emt 0:00:30]} 2. Nc3 {[%emt 0:00:00]} Nc6 {[%emt 0:00:30]} 3. g3 {[%emt 0:00:00]} g6 {[%emt 0:00:00]} 4. Bg2 {[%emt 0:00:00]} Bg7 {[%emt 0:00:00]} 5. d3 {[%emt 0:00:00]} d6 {[%emt 0:00:30]} 6. Be3 {[%emt 0:00:00]} Nf6 {[%emt 0:01:30]} 7. h3 {[%emt 0:02:00]} Rb8 {[%emt 0:03:30]} 8. f4 {[%emt 0:02:30]} O-O {[%emt 0:01:30]} 9. Nge2 {[%emt 0:03:30]} Bd7 {[%emt 0:05:30]} 10. O-O {[%emt 0:00:30]} b5 {[%emt 0:00:30]} 11. Qd2 {[%emt 0:02:30]} b4 {[%emt 0:03:30]} 12. Nd1 {[%emt 0:01:30]} Qa5 {[%emt 0:09:30]} 13. g4 {[%emt 0:17:30]} Ne8 {[%emt 0:15:30]} 14. f5 {[%emt 0:04:30]} Nd4 {[%emt 0:02:30]} 15. Bg5 {[%emt 0:05:30]} Nf6 {[%emt 0:02:30]} 16. Ng3 {[%emt 0:17:30]} Qa4 {[%emt 0:08:30]} 17. b3 {[%emt 0:08:30]} Qa6 {[%emt 0:01:30]} 18. fxg6 {[%emt 0:07:30]} fxg6 {[%emt 0:01:30]} 19. Ne3 {[%emt 0:02:30]} Ne6 {[%emt 0:07:30]} 20. Bxf6 {[%emt 0:01:30]} Bxf6 {[%emt 0:00:30]} 21. Rad1 {[%emt 0:03:10]} Bc3 {[%emt 0:08:30]} 22. Qc1 {[%emt 0:01:40]} Be5 {[%emt 0:02:30]} 23. Ne2 {[%emt 0:02:04]} Qxa2 {[%emt 0:09:07]} 24. Nd5 {[%emt 0:03:28]} Rxf1+ {[%emt 0:03:43]} 25. Rxf1 {[%emt 0:00:04]} Re8 {[%emt 0:00:30]} 26. Kh1 {[%emt 0:01:18]} Kg7 {[%emt 0:03:12]} 27. Nef4 {[%emt 0:05:09]} Nxf4 {[%emt 0:03:16]} 28. Nxf4 {[%emt 0:00:05]} Qb2 {[%emt 0:00:47]} 29. Qd2 {[%emt 0:01:43]} Rf8 {[%emt 0:02:21]} 30. Nd5 {[%emt 0:01:47]} Rxf1+ {[%emt 0:01:19]} 31. Bxf1 {[%emt 0:00:04]} e6 {[%emt 0:01:16]} 32. Qg5 {[%emt 0:02:37]} Bf6 {[%emt 0:01:27]} 33. Nxf6 {[%emt 0:00:31]} Qxf6 {[%emt 0:00:15]} 34. Qxf6+ {[%emt 0:00:03]} Kxf6 {[%emt 0:00:10]} 35. Kg2 {[%emt 0:00:07]} Ke5 {[%emt 0:00:57]} 36. Kf3 {[%emt 0:01:00]} Kd4 {[%emt 0:00:20]} 37. Ke2 {[%emt 0:01:01]} Kc3 {[%emt 0:00:21]} 38. Kd1 {[%emt 0:02:33]} g5 {[%emt 0:00:11]} 39. Kc1 {[%emt 0:00:18]} a5 {[%emt 0:00:44]} 40. Be2 {[%emt 0:00:04]} a4 {[%emt 0:00:47]} 41. bxa4 {[%emt 0:31:05]} Bxa4 {[%emt 0:30:21]} 42. e5 {[%emt 0:02:10]} dxe5 {[%emt 0:00:40]} 43. Bd1 {[%emt 0:00:00]} h6 {[%emt 0:00:00]} 0-1

[Event "ESTCC 50 2019"]
[Site "Mali Losinj"]
[Date "2019.09.24"]
[Round "7.14"]
[White "Ledger, Dave J"]
[Black "Wagner-Michel, Annett"]
[Result "1/2-1/2"]
[ECO "B56"]
[WhiteElo "2134"]
[BlackElo "2055"]
[Annotator "NA"]
[PlyCount "97"]
[EventDate "2019.09.18"]
[EventType "team-tourn"]
[EventCountry "CRO"]
[SourceTitle "playchess.com"]
[Source "ChessBase"]
[SourceQuality "1"]
[WhiteTeam "England"]
[BlackTeam "Germany"]
[WhiteTeamCountry "ENG"]
[BlackTeamCountry "GER"]
[TimeControl "40/5400+30:1800+30"]

1. e4 {[%emt 0:00:30]} c5 {[%emt 0:00:30]} 2. Nf3 {[%emt 0:00:00]} Nc6 {[%emt 0:00:00]} 3. d4 {[%emt 0:00:00]} cxd4 {[%emt 0:00:00]} 4. Nxd4 {[%emt 0:00:00]} Nf6 {[%emt 0:00:00]} 5. Nc3 {[%emt 0:00:00]} d6 {[%emt 0:00:00]} 6. f3 {[%emt 0:01:30]} e5 {[%emt 0:01:30]} 7. Nb3 {[%emt 0:00:30]} Be6 {[%emt 0:00:30]} 8. Be3 {[%emt 0:01:30]} Be7 {[%emt 0:01:30]} 9. Qd2 {[%emt 0:01:30]} d5 {[%emt 0:03:30]} 10. exd5 {[%emt 0:03:30]} Nxd5 {[%emt 0:00:30]} 11. Nxd5 {[%emt 0:00:30]} Qxd5 {[%emt 0:00:30]} 12. Qxd5 {[%emt 0:06:30]} Bxd5 {[%emt 0:00:30]} 13. O-O-O {[%emt 0:09:30]} O-O-O {[%emt 0:08:30]} 14. Bb5 {[%emt 0:06:30]} a6 {[%emt 0:22:30]} 15. Be2 {[%emt 0:01:30]} Kc7 {[%emt 0:02:30]} 16. Kb1 {[%emt 0:10:30]} f5 {[%emt 0:10:30]} 17. Rhe1 {[%emt 0:05:30]} Rhe8 {[%emt 0:02:30]} 18. Bf1 {[%emt 0:10:30]} Bh4 {[%emt 0:06:30]} 19. g3 {[%emt 0:01:30]} Bxf3 {[%emt 0:02:30]} 20. Rxd8 {[%emt 0:01:30]} Bxd8 {[%emt 0:00:00]} 21. Nc5 {[%emt 0:00:30]} Bf6 {[%emt 0:06:00]} 22. Bc4 {[%emt 0:00:30]} Nd8 {[%emt 0:04:30]} 23. Rf1 {[%emt 0:02:30]} e4 {[%emt 0:03:30]} 24. Rf2 {[%emt 0:01:30]} Be7 {[%emt 0:01:30]} 25. Nb3 {[%emt 0:04:30]} g6 {[%emt 0:04:20]} 26. Nd2 {[%emt 0:04:30]} Bh5 {[%emt 0:01:34]} 27. Bd5 {[%emt 0:02:30]} b5 {[%emt 0:03:51]} 28. Nb3 {[%emt 0:04:30]} Bd6 {[%emt 0:01:22]} 29. Nd4 {[%emt 0:02:56]} Be5 {[%emt 0:02:23]} 30. c3 {[%emt 0:01:30]} Kd6 {[%emt 0:01:32]} 31. Ba8 {[%emt 0:03:12]} Ne6 {[%emt 0:01:23]} 32. Rd2 {[%emt 0:03:31]} Rxa8 {[%emt 0:00:44]} 33. Nf3+ {[%emt 0:01:21]} Kc7 {[%emt 0:03:43]} 34. Nxe5 {[%emt 0:01:04]} Rd8 {[%emt 0:00:42]} 35. Rxd8 {[%emt 0:01:03]} Nxd8 {[%emt 0:00:30]} 36. Kc2 {[%emt 0:00:55]} Kd6 {[%emt 0:00:31]} 37. Bf4 {[%emt 0:01:43]} Ke6 {[%emt 0:00:53]} 38. Kd2 {[%emt 0:01:10]} Kd5 {[%emt 0:02:35]} 39. h3 {[%emt 0:01:29]} Ne6 {[%emt 0:00:30]} 40. Nd7 {[%emt 0:01:21]} Nxf4 {[%emt 0:01:14]} 41. gxf4 {[%emt 0:00:15]} Kd6 {[%emt 0:06:43]} 42. Nf6 {[%emt 0:06:30]} h6 {[%emt 0:00:30]} 43. Nxh5 {[%emt 0:01:30]} gxh5 {[%emt 0:00:30]} 44. h4 {[%emt 0:00:30]} Kc5 {[%emt 0:01:30]} 45. b3 {[%emt 0:00:30]} Kd5 {[%emt 0:00:30]} 46. Ke3 {[%emt 0:00:30]} Kc5 {[%emt 0:00:30]} 47. Kd2 {[%emt 0:00:30]} Kd5 {[%emt 0:00:30]} 48. Ke3 {[%emt 0:00:30]} Kc5 {[%emt 0:00:30]} 49. Kd2 {[%emt 0:00:30]} 1/2-1/2

[Event "ESTCC 50 2019"]
[Site "Mali Losinj"]
[Date "2019.09.24"]
[Round "7.15"]
[White "Kierzek, Mira"]
[Black "Nelson, Jonathan P"]
[Result "1/2-1/2"]
[ECO "A55"]
[WhiteElo "2015"]
[BlackElo "2183"]
[Annotator "NA"]
[PlyCount "82"]
[EventDate "2019.09.18"]
[EventType "team-tourn"]
[EventCountry "CRO"]
[SourceTitle "playchess.com"]
[Source "ChessBase"]
[SourceQuality "1"]
[WhiteTeam "Germany"]
[BlackTeam "England"]
[WhiteTeamCountry "GER"]
[BlackTeamCountry "ENG"]
[TimeControl "40/5400+30:1800+30"]

1. d4 {[%emt 0:00:30]} d6 {[%emt 0:00:30]} 2. Nf3 {[%emt 0:00:00]} Nf6 {[%emt 0:00:30]} 3. g3 {[%emt 0:00:00]} Nbd7 {[%emt 0:00:30]} 4. Bg2 {[%emt 0:01:30]} e5 {[%emt 0:00:30]} 5. c4 {[%emt 0:02:30]} Be7 {[%emt 0:00:30]} 6. Nc3 {[%emt 0:00:30]} O-O {[%emt 0:01:30]} 7. O-O {[%emt 0:01:30]} c6 {[%emt 0:00:30]} 8. Qc2 {[%emt 0:04:30]} Re8 {[%emt 0:02:30]} 9. b3 {[%emt 0:01:30]} Bf8 {[%emt 0:01:30]} 10. e4 {[%emt 0:10:30]} a6 {[%emt 0:04:30]} 11. Bb2 {[%emt 0:00:30]} b5 {[%emt 0:09:30]} 12. cxb5 {[%emt 0:04:30]} axb5 {[%emt 0:10:30]} 13. dxe5 {[%emt 0:07:30]} dxe5 {[%emt 0:02:30]} 14. a3 {[%emt 0:06:30]} Bb7 {[%emt 0:13:30]} 15. Nd1 {[%emt 0:10:30]} Qc7 {[%emt 0:10:30]} 16. Nc3 {[%emt 0:03:30]} Qb6 {[%emt 0:04:30]} 17. Rfd1 {[%emt 0:05:30]} c5 {[%emt 0:13:30]} 18. Qe2 {[%emt 0:14:30]} Bc6 {[%emt 0:05:08]} 19. Nd5 {[%emt 0:08:47]} Bxd5 {[%emt 0:05:07]} 20. exd5 {[%emt 0:00:47]} c4 {[%emt 0:02:16]} 21. bxc4 {[%emt 0:02:32]} bxc4 {[%emt 0:00:05]} 22. Qc2 {[%emt 0:04:35]} Rab8 {[%emt 0:04:10]} 23. Rab1 {[%emt 0:02:31]} Qc5 {[%emt 0:01:34]} 24. Nd2 {[%emt 0:01:55]} Rec8 {[%emt 0:01:47]} 25. Ne4 {[%emt 0:01:45]} Nxe4 {[%emt 0:00:38]} 26. Bxe4 {[%emt 0:00:25]} c3 {[%emt 0:00:27]} 27. Ba1 {[%emt 0:02:15]} Rxb1 {[%emt 0:00:38]} 28. Rxb1 {[%emt 0:00:13]} Nf6 {[%emt 0:00:42]} 29. Bf5 {[%emt 0:01:22]} Rc7 {[%emt 0:00:49]} 30. a4 {[%emt 0:00:56]} g6 {[%emt 0:00:27]} 31. Rb5 {[%emt 0:00:20]} Qa3 {[%emt 0:00:29]} 32. d6 {[%emt 0:00:54]} Bxd6 {[%emt 0:00:38]} 33. Rb8+ {[%emt 0:00:10]} Kg7 {[%emt 0:00:10]} 34. Rb1 {[%emt 0:00:30]} Qc5 {[%emt 0:03:05]} 35. Bd3 {[%emt 0:00:26]} h5 {[%emt 0:00:37]} 36. Bb5 {[%emt 0:00:26]} h4 {[%emt 0:00:37]} 37. Rd1 {[%emt 0:00:33]} hxg3 {[%emt 0:00:20]} 38. hxg3 {[%emt 0:00:09]} Nd5 {[%emt 0:00:46]} 39. Be8 {[%emt 0:01:16]} Nf6 {[%emt 0:00:43]} 40. Bb5 {[%emt 0:00:07]} Nd5 {[%emt 0:00:28]} 41. Be8 {[%emt 0:01:36]} Nf6 {[%emt 0:11:19]} 1/2-1/2

[Event "ESTCC 50 2019"]
[Site "Mali Losinj"]
[Date "2019.09.24"]
[Round "7.16"]
[White "Ledger, Stephen C"]
[Black "Leib, Britta"]
[Result "1-0"]
[ECO "A45"]
[WhiteElo "2000"]
[BlackElo "1883"]
[Annotator "NA"]
[PlyCount "75"]
[EventDate "2019.09.18"]
[EventType "team-tourn"]
[EventCountry "CRO"]
[SourceTitle "playchess.com"]
[Source "ChessBase"]
[SourceQuality "1"]
[WhiteTeam "England"]
[BlackTeam "Germany"]
[WhiteTeamCountry "ENG"]
[BlackTeamCountry "GER"]
[TimeControl "40/5400+30:1800+30"]

1. d4 {[%emt 0:00:30]} Nf6 {[%emt 0:00:30]} 2. Bg5 {[%emt 0:00:00]} Ne4 {[%emt 0:00:00]} 3. Bf4 {[%emt 0:00:00]} c5 {[%emt 0:01:00]} 4. f3 {[%emt 0:00:30]} Qa5+ {[%emt 0:00:30]} 5. c3 {[%emt 0:01:30]} Nf6 {[%emt 0:01:30]} 6. d5 {[%emt 0:00:30]} d6 {[%emt 0:04:30]} 7. e4 {[%emt 0:01:30]} g6 {[%emt 0:02:30]} 8. Nd2 {[%emt 0:01:30]} Bg7 {[%emt 0:04:30]} 9. Nc4 {[%emt 0:05:30]} Qd8 {[%emt 0:02:30]} 10. a4 {[%emt 0:00:30]} O-O {[%emt 0:05:30]} 11. Bd3 {[%emt 0:07:30]} Nbd7 {[%emt 0:02:30]} 12. Ne2 {[%emt 0:04:30]} Nh5 {[%emt 0:01:30]} 13. Be3 {[%emt 0:01:30]} Ne5 {[%emt 0:01:30]} 14. Nxe5 {[%emt 0:02:30]} Bxe5 {[%emt 0:00:00]} 15. g4 {[%emt 0:02:30]} Nf6 {[%emt 0:05:00]} 16. h3 {[%emt 0:03:30]} Nd7 {[%emt 0:03:30]} 17. f4 {[%emt 0:04:30]} Bg7 {[%emt 0:04:30]} 18. Ng3 {[%emt 0:04:30]} e6 {[%emt 0:03:30]} 19. Qf3 {[%emt 0:12:30]} exd5 {[%emt 0:09:30]} 20. exd5 {[%emt 0:00:30]} a6 {[%emt 0:04:30]} 21. O-O {[%emt 0:00:30]} Rb8 {[%emt 0:01:30]} 22. Rae1 {[%emt 0:05:30]} b5 {[%emt 0:05:30]} 23. axb5 {[%emt 0:02:30]} axb5 {[%emt 0:00:00]} 24. Ne4 {[%emt 0:05:30]} Nb6 {[%emt 0:15:00]} 25. Ng3 {[%emt 0:03:30]} Bb7 {[%emt 0:10:17]} 26. Be4 {[%emt 0:01:30]} Qd7 {[%emt 0:07:47]} 27. h4 {[%emt 0:01:30]} Rfe8 {[%emt 0:00:25]} 28. f5 {[%emt 0:02:30]} Be5 {[%emt 0:00:13]} 29. Bf2 {[%emt 0:01:30]} Ra8 {[%emt 0:01:05]} 30. h5 {[%emt 0:01:30]} Nc4 {[%emt 0:02:11]} 31. Re2 {[%emt 0:03:30]} Ra2 {[%emt 0:00:05]} 32. fxg6 {[%emt 0:00:46]} fxg6 {[%emt 0:00:01]} 33. hxg6 {[%emt 0:00:14]} hxg6 {[%emt 0:00:12]} 34. Bxg6 {[%emt 0:01:29]} Rf8 {[%emt 0:01:23]} 35. Nf5 {[%emt 0:02:19]} Rf6 {[%emt 0:00:34]} 36. Bh4 {[%emt 0:02:01]} Nb6 {[%emt 0:01:57]} 37. Bxf6 {[%emt 0:01:33]} Bxf6 {[%emt 0:00:06]} 38. Nh6+ {[%emt 0:00:00]} 1-0